fUSD/lending_fUSD_20240801
["ID","MTS","AMOUNT","RATE_DAILY","PERIOD"]
[333839458,1722543070643,500.0,0.00027,120]
[333839459,1722543070678,500.0,0.00027,120]
[333839460,1722543070745,500.0,0.00027,120]
[333839461,1722543070782,500.0,0.00027,120]
[333839462,1722543071245,500.0,0.00027,120]
[333839463,1722543071274,500.0,0.00027,120]
[333839464,1722543071310,500.0,0.00027,120]
[333839465,1722543071421,500.0,0.00027,120]
[333839466,1722543071632,500.0,0.00027,120]
[333839467,1722543072080,500.0,0.00027,120]
[333839468,1722543072526,500.0,0.00027,120]
[333839469,1722543072564,500.0,0.00027,120]
[333839470,1722543072981,500.0,0.00027,120]
[333839471,1722543073031,500.0,0.00027,120]
[333839472,1722543073453,500.0,0.00027,120]
[333839473,1722543073482,500.0,0.00027,120]
[333839474,1722543073901,500.0,0.00027,120]
[333839475,1722543073929,500.0,0.00027,120]
[333839476,1722543074337,500.0,0.00027,120]
[333839477,1722543074797,500.0,0.00027,120]
[333839478,1722543075006,500.0,0.00027,120]
[333839479,1722543075214,500.0,0.00027,120]
[333839480,1722543075519,642.91673968,0.00027,120]
[333839481,1722543075672,500.0,0.00027,120]
[333839482,1722543077323,500.0,0.00027,120]
[333839483,1722543077781,500.0,0.00027,120]
[333839484,1722543078305,500.0,0.00027,120]
[333839485,1722543078784,500.0,0.00027,120]
[333839486,1722543079218,500.0,0.00027,120]
[333839487,1722543079639,500.0,0.00027,120]
[333839488,1722543080105,500.0,0.00027,120]
[333839489,1722543082422,500.0,0.00027,120]
[333839490,1722543082468,500.0,0.00027,120]
[333839491,1722543082509,500.0,0.00027,120]
[333839492,1722543082548,500.0,0.00027,120]
[333839493,1722543082601,500.0,0.00027,120]
[333839494,1722543082891,500.0,0.00027,120]
[333839495,1722543083303,500.0,0.00027,120]
[333839496,1722543083795,500.0,0.00027,120]
[333839497,1722543084231,500.0,0.00027,120]
[333839498,1722543084683,500.0,0.00027,120]
[333839499,1722543085121,500.0,0.00027,120]
[333839500,1722543085561,500.0,0.00027,120]
[333839501,1722543085996,500.0,0.00027,120]
[333839502,1722543086483,500.0,0.00027,120]
[333839503,1722543087087,500.0,0.00027,120]
[333839504,1722543088352,500.0,0.00027,120]
[333839505,1722543088778,500.0,0.00027,120]
[333839506,1722543089211,500.0,0.00027,120]
[333839507,1722543089637,500.0,0.00027,120]
[333839508,1722543090095,500.0,0.00027,120]
[333839509,1722543090586,578.78380579,0.00027,120]
[333839511,1722543589836,232.57,8.625e-05,2]
[333839520,1722544087728,220.94,8.389e-05,2]
[333839530,1722544232073,-3440.07294455,0.0001,2]
[333839531,1722544232092,-374.77689865,0.0001,2]
[333839532,1722544232104,-551.29288503,0.0001,2]
[333839533,1722544232118,-82.30615856,0.0001,2]
[333839534,1722544232128,-236.40881395,0.00010168,2]
[333839535,1722544232139,-96.3822453,0.00010168,2]
[333839536,1722544232150,-308.807424,0.00010168,2]
[333839537,1722544232165,-542.53357994,0.00010168,2]
[333839538,1722544232174,-400.0,0.00010218,2]
[333839539,1722544232184,-250.0,0.0001024,2]
[333839540,1722544232193,-1000.0,0.00010366,2]
[333839541,1722544232202,-130.47818736,0.00010453,2]
[333839542,1722544232214,-254.52181264,0.00010453,2]
[333839543,1722544232223,-150.0,0.00010453,2]
[333839544,1722544232233,-315.04582703,0.00010454,2]
[333839545,1722544232244,-139.08110778,0.00010454,2]
[333839546,1722544232256,-176.21597168,0.00010454,2]
[333839547,1722544232277,-296.67205621,0.00010454,2]
[333839548,1722544232288,-2588.83228967,0.00010454,2]
[333839549,1722544232297,-144.73499433,0.00010454,2]
[333839550,1722544232308,-381.34715846,0.00010454,2]
[333839551,1722544232317,-201.57788891,0.00010454,2]
[333839552,1722544232328,-51.70211109,0.00010454,2]
[333839553,1722544232337,-155.0,0.00010454,2]
[333839554,1722544232348,-209.39108946,0.00010454,2]
[333839555,1722544232357,-530.53203882,0.00010454,2]
[333839556,1722544232366,-710.55927253,0.00010454,2]
[333839557,1722544232376,-304.51413803,0.00010454,2]
[333839558,1722544232385,-333.725,0.000105,2]
[333839560,1722544232394,-885.77635007,0.00010529,2]
[333839563,1722544232405,-6310.96790771,0.00010529,2]
[333839564,1722544232416,-16703.25574222,0.00010529,2]
[333839565,1722544232425,-4797.62,0.00010567,2]
[333839566,1722544232436,-220.94,0.00010653,2]
[333839567,1722544232445,-1400.52228302,0.0001078,2]
[333839568,1722544232454,-256772.97142169,0.0001088,2]
[333839569,1722544232464,-3000.0,0.0001089,2]
[333839570,1722544232473,-2809.939,0.000109,2]
[333839571,1722544232482,-3421.6897,0.000109,2]
[333839572,1722544232491,-893.2677,0.000109,2]
[333839573,1722544232501,-1446.98,0.000109,2]
[333839574,1722544232511,-174.95524457,0.000109,2]
[333839575,1722544232521,-303.63,0.000109,2]
[333839576,1722544232530,-1465.72066178,0.000109,2]
[333839577,1722544232539,-1400.52228301,0.000109,2]
[333839578,1722544232549,-499.99,0.00010959,2]
[333839579,1722544232558,-250.0,0.00010959,2]
[333839580,1722544232568,-28656.95569825,0.0001099,3]
[333839581,1722544232577,-150.01,0.00010999,2]
[333839582,1722544232587,-5949.56311001,0.00010999,2]
[333839583,1722544232597,-562759.8679532,0.00011,2]
[333839584,1722544232614,-269.0000005,0.00011,2]
[333839585,1722544232625,-2852.80510775,0.00011,2]
[333839586,1722544232637,-1205.48616,0.00011,2]
[333839587,1722544232653,-1231.85132041,0.00011,2]
[333839588,1722544232664,-311.84172578,0.00011,2]
[333839589,1722544232675,-833.36001832,0.00011,2]
[333839590,1722544232686,-537.12016184,0.00011,2]
[333839591,1722544238291,-345.0,0.000109,2]
[333839592,1722544238306,-1499.73702298,0.000109,2]
[333839593,1722544238318,-664.1134747,0.000109,2]
[333839594,1722544238329,-1602.5379144,0.000109,2]
[333839596,1722544238338,-1401.57062585,0.00011,2]
[333839598,1722544238350,-658.98348,0.00011,2]
[333839600,1722544238361,-1286448.04471744,0.00011,2]
[333839602,1722544238373,-1484896.90883337,0.00011,2]
[333839604,1722544238384,-1479.70572838,0.00011,2]
[333839606,1722544238396,-651.2,0.00011,2]
[333839607,1722544238407,-3875.17,0.00011,2]
[333839609,1722544238419,-1088.50015,0.00011,2]
[333839610,1722544238450,-1908.71029907,0.00011,2]
[333839611,1722544238462,-22140.40455578,0.00011,2]
[333839668,1722544242016,-210.39281179,0.00010999,2]
[333839669,1722544242026,-5949.56311001,0.00010999,2]
[333839670,1722544242036,-119554.36759614,0.00011,2]
[333839671,1722544242045,-5532291.83091886,0.00011,2]
[333839672,1722544242056,-222618.69988227,0.00011,2]
[333839673,1722544242086,-28223.61302745,0.00011,2]
[333839696,1722544243074,-10816.61358908,0.00011,2]
[333839707,1722544243201,-1783.2,0.00011,2]
[333839709,1722544243213,-8677.33328004,0.00011,2]
[333839711,1722544243225,-32500.0000001,0.00011,2]
[333839713,1722544243236,-2746.17014355,0.00011,2]
[333839718,1722544243276,-19694.65227248,0.00011,2]
[333839734,1722544246334,-167.78500001,0.00010997,2]
[333839735,1722544246344,-95.18971204,0.00010997,2]
[333839736,1722544246397,-72.59528797,0.00010997,2]
[333839737,1722544246406,-532.96568523,0.00010999,2]
[333839738,1722544246417,-323.60861225,0.00010999,2]
[333839739,1722544246429,-459.29542071,0.00010999,2]
[333839740,1722544246438,-173.83674369,0.00011,2]
[333839741,1722544246458,-817.59499998,0.00011,2]
[333839742,1722544246523,-933.17494973,0.00011,2]
[333839750,1722544640476,218.73,8.374e-05,2]
[333839752,1722545106943,207.79,8.219e-05,2]
[333839754,1722545370940,-250.0,9.477e-05,2]
[333839755,1722545370969,-300.0,9.495e-05,2]
[333839756,1722545370996,-774.48311017,9.496e-05,2]
[333839757,1722545371050,-330.79763219,9.496e-05,2]
[333839758,1722545371086,-1324.48311017,9.496e-05,2]
[333839780,1722545433294,-300.0,9.495e-05,2]
[333839781,1722545433304,-300.0,9.495e-05,2]
[333839782,1722545433314,-21470.23614747,9.496e-05,2]
[333839783,1722545433324,-200.0,9.516e-05,2]
[333839784,1722545433333,-34071.31385253,0.0001,2]
[333839785,1722545433345,-1067.0652281,0.0001,2]
[333839786,1722545433356,-1183.77500925,0.0001,2]
[333839787,1722545433368,-8088.01439827,0.0001,2]
[333839788,1722545433380,-1038.68259427,0.0001,2]
[333839789,1722545433394,-786.87675746,0.0001,2]
[333839790,1722545433407,-1004.42892586,0.0001,2]
[333839791,1722545433427,-7399.11816475,0.0001,2]
[333839792,1722545433437,-150.0,0.0001011,2]
[333839793,1722545433447,-526.08215279,0.0001015,2]
[333839794,1722545433456,-199.9,0.00010197,2]
[333839795,1722545433467,-1000.0,0.00010197,2]
[333839796,1722545433477,-499.99,0.00010197,2]
[333839797,1722545433486,-199.9,0.000102,2]
[333839798,1722545433496,-1073.59,0.000102,2]
[333839799,1722545433508,-882.68,0.000102,2]
[333839800,1722545433518,-199.9,0.00010202,2]
[333839801,1722545433527,-199.9,0.00010205,2]
[333839802,1722545433537,-199.9,0.00010208,2]
[333839803,1722545433546,-199.9,0.0001021,2]
[333839804,1722545433555,-199.9,0.00010213,2]
[333839805,1722545433565,-199.9,0.00010216,2]
[333839806,1722545433574,-199.9,0.00010218,2]
[333839807,1722545433583,-199.9,0.00010221,2]
[333839808,1722545433593,-199.9,0.00010224,2]
[333839809,1722545433602,-199.9,0.00010226,2]
[333839810,1722545433611,-199.9,0.00010229,2]
[333839811,1722545433621,-199.9,0.00010232,2]
[333839812,1722545433630,-199.9,0.00010234,2]
[333839813,1722545433640,-199.9,0.00010237,2]
[333839814,1722545433649,-199.9,0.0001024,2]
[333839815,1722545433659,-199.9,0.00010243,2]
[333839816,1722545433668,-199.9,0.00010245,2]
[333839817,1722545433677,-199.9,0.00010248,2]
[333839818,1722545433687,-420.0,0.00010444,2]
[333839819,1722545433697,-420.0,0.00010444,2]
[333839820,1722545433706,-207.79,0.00010449,2]
[333839821,1722545433715,-2800.0,0.000106,3]
[333839822,1722545433725,-5600.0,0.000107,3]
[333839823,1722545433734,-1345.4023,0.0001078,2]
[333839824,1722545433744,-4863.8539,0.0001078,2]
[333839825,1722545433754,-8400.0,0.000108,3]
[333839826,1722545433763,-3000.0,0.0001089,2]
[333839827,1722545433772,-3262.77663623,0.00010899,2]
[333839828,1722545433782,-30506.5539,0.000109,2]
[333839829,1722545433791,-321.44547856,0.000109,2]
[333839830,1722545433800,-1559.971896,0.000109,2]
[333839831,1722545433810,-170.5948962,0.000109,2]
[333839832,1722545433820,-348.7569,0.000109,2]
[333839833,1722545433829,-3355.55,0.000109,2]
[333839834,1722545433838,-12133.0553,0.000109,2]
[333839835,1722545433848,-11200.0,0.000109,3]
[333839836,1722545433858,-293.64006704,0.000109,2]
[333839837,1722545433867,-310.74763357,0.000109,2]
[333839838,1722545433877,-577.28681432,0.000109,2]
[333839839,1722545433888,-250.0,0.00010959,2]
[333839840,1722545433899,-150.2,0.0001099,2]
[333839841,1722545433908,-150.2,0.0001099,2]
[333839842,1722545433917,-150.2,0.0001099,2]
[333839843,1722545433927,-150.2,0.0001099,2]
[333839844,1722545433937,-150.2,0.0001099,2]
[333839845,1722545433947,-150.2,0.0001099,2]
[333839846,1722545433957,-150.2,0.0001099,2]
[333839847,1722545433966,-150.2,0.0001099,2]
[333839848,1722545433976,-150.2,0.0001099,2]
[333839849,1722545433986,-1504.47847447,0.00010999,2]
[333839850,1722545433995,-25922.0,0.00011,2]
[333839851,1722545434005,-5016.83364849,0.00011,2]
[333839852,1722545434017,-58771.25034392,0.00011,2]
[333839853,1722545434029,-1270399.93652727,0.00011,2]
[333839854,1722545434040,-356.5412592,0.00011,2]
[333839855,1722545434052,-1582.85,0.00011,2]
[333839856,1722545434067,-841.88482517,0.00011,2]
[333839857,1722545434079,-2367.38584379,0.00011,2]
[333839864,1722545438208,-301.69258333,0.00011,2]
[333839865,1722545438274,-6510.64424723,0.00011,2]
[333839867,1722545438321,-505.73971328,0.00011,2]
[333839868,1722545438488,-1954.87549614,0.00011,2]
[333839953,1722545440284,-327.81001,0.00010997,2]
[333839954,1722545440296,-630.49789104,0.00010997,2]
[333839955,1722545440307,-258.06497,0.00010997,2]
[333839956,1722545440317,-704.71003,0.00011,2]
[333839957,1722545440328,-282.77537501,0.00011,2]
[333839958,1722545440405,-2926.02997627,0.00011,2]
[333839959,1722545440417,-551.36701193,0.00011,2]
[333839960,1722545440467,-342.7218875,0.00011,2]
[333839961,1722545440479,-1334.80406948,0.00011,2]
[333839962,1722545440491,-1239.12569951,0.00011,2]
[333839963,1722545440505,-4705.71464338,0.00011,2]
[333839964,1722545441473,-983.2444472,0.00011,2]
[333840329,1722545445180,-1464.06406546,0.00011,2]
[333840334,1722545445223,-1364.2199562,0.00011,2]
[333840336,1722545445234,-448.95942964,0.00011,2]
[333840339,1722545445245,-15811.51478153,0.00011,2]
[333840341,1722545445257,-1279.97005618,0.00011,2]
[333840343,1722545445268,-3939.92439593,0.00011,2]
[333840345,1722545445279,-935.898057,0.00011,2]
[333840349,1722545445301,-6243.43439683,0.00011,2]
[333840351,1722545445313,-1723.80973372,0.00011,2]
[333840353,1722545445323,-374.72962927,0.00011,2]
[333840359,1722545445364,-1318.27107175,0.00011,2]
[333840361,1722545445375,-1245.28478886,0.00011,2]
[333840363,1722545445386,-4616.80177371,0.00011,2]
[333840365,1722545445400,-11092.81353516,0.00011,2]
[333840367,1722545445411,-419.13536791,0.00011,2]
[333840370,1722545445430,-1574.34785984,0.00011,2]
[333840372,1722545445441,-833.87987711,0.00011,2]
[333840374,1722545445452,-694.5375725,0.00011,2]
[333840376,1722545445464,-409972.92323165,0.00011,2]
[333840474,1722545446398,-795.97165033,0.00011,2]
[333840485,1722545446455,-337251.25400522,0.00011,2]
[333840493,1722545446517,-810.7547,0.00011,2]
[333840495,1722545446528,-11319.24942031,0.00011,2]
[333840501,1722545446577,-2784.40376051,0.00011,2]
[333840503,1722545446588,-3737.94016708,0.00011,2]
[333841634,1722545533080,-340.68338463,0.00011,4]
[333841636,1722545546038,-200.0,0.000109,3]
[333841638,1722545562267,-181.34243174,0.00010899,2]
[333841639,1722545562294,-951.082554,0.000109,2]
[333841640,1722545562321,-207.73977498,0.000109,2]
[333841641,1722545562348,-1000.0,0.000109,2]
[333841642,1722545562376,-155.0,0.0001099,2]
[333841643,1722545562403,-150.0,0.00010999,2]
[333841644,1722545562429,-194.69317521,0.00010999,2]
[333841645,1722545562458,-300.0,0.00010999,2]
[333841646,1722545562491,-59956.45867944,0.00011,2]
[333841661,1722546123655,207.54,8.219e-05,2]
[333841674,1722546575476,197.16,8.219e-05,2]
[333841694,1722546631531,-200.0,9.497e-05,2]
[333841695,1722546631541,-300.0,9.507e-05,2]
[333841696,1722546631551,-1039.84,9.508e-05,2]
[333841697,1722546631563,-22860.16,9.508e-05,2]
[333841698,1722546631573,-2000.0,9.532e-05,2]
[333841699,1722546631582,-256.59,9.535e-05,2]
[333841700,1722546631591,-200.0,9.544e-05,2]
[333841701,1722546631601,-250.0,9.583e-05,2]
[333841702,1722546631611,-320.0,9.587e-05,2]
[333841703,1722546631621,-188.85,0.00010008,2]
[333841704,1722546631631,-177.52,0.00010101,2]
[333841705,1722546631641,-153.06,0.00010222,2]
[333841706,1722546631650,-153.06,0.00010225,2]
[333841707,1722546631659,-153.06,0.00010228,2]
[333841708,1722546631668,-1666.77,0.00010228,2]
[333841709,1722546631678,-153.06,0.0001023,2]
[333841710,1722546631687,-153.06,0.00010233,2]
[333841711,1722546631696,-153.06,0.00010236,2]
[333841712,1722546631705,-153.06,0.00010239,2]
[333841713,1722546631715,-153.06,0.00010241,2]
[333841714,1722546631724,-153.06,0.00010244,2]
[333841715,1722546631737,-153.06,0.00010247,2]
[333841716,1722546631746,-499.99,0.00010247,2]
[333841717,1722546631756,-153.06,0.00010249,2]
[333841718,1722546631765,-153.06,0.00010252,2]
[333841719,1722546631774,-153.06,0.00010255,2]
[333841720,1722546631783,-153.06,0.00010257,2]
[333841721,1722546631793,-153.06,0.0001026,2]
[333841722,1722546631803,-153.06,0.00010263,2]
[333841723,1722546631812,-150.0,0.00010265,2]
[333841724,1722546631822,-153.06,0.00010265,2]
[333841725,1722546631831,-153.06,0.00010268,2]
[333841726,1722546631843,-153.06,0.00010271,2]
[333841727,1722546631853,-153.06,0.00010273,2]
[333841728,1722546631863,-197.16,0.0001045,2]
[333841730,1722546631873,-200.0,0.00010666,2]
[333841732,1722546631883,-320.0,0.00010786,2]
[333841733,1722546631893,-15472.975,0.00010799,2]
[333841734,1722546631903,-630.2187,0.000108,2]
[333841735,1722546631914,-518.7721,0.000108,2]
[333841736,1722546631924,-1000.0,0.00010858,2]
[333841737,1722546631933,-33411.3592,0.000109,2]
[333841738,1722546631943,-620.76,0.000109,2]
[333841739,1722546631953,-1600.0,0.000109,3]
[333841740,1722546631962,-2500.0,0.000109,2]
[333841741,1722546631971,-2936.49897258,0.000109,2]
[333841742,1722546631984,-362.8897,0.000109,2]
[333841743,1722546631993,-515.59657301,0.000109,2]
[333841744,1722546632002,-500.0,0.00010911,2]
[333841745,1722546632012,-500.0,0.00010912,2]
[333841746,1722546632023,-500.0,0.00010912,2]
[333841747,1722546632033,-200.0,0.00010959,2]
[333841748,1722546632042,-1500.0,0.00010959,5]
[333841749,1722546632053,-150.2,0.0001099,2]
[333841750,1722546632063,-552192.48975471,0.00011,2]
[333841751,1722546632076,-6510.7956,0.00011,2]
[333841752,1722546632088,-835.43274355,0.00011,2]
[333841753,1722546632100,-658.96,0.00011,2]
[333841757,1722546637429,-664.7658,0.00011,2]
[333841758,1722546637880,-766.52260737,0.00011,2]
[333841761,1722546637892,-244261.10354867,0.00011,2]
[333841762,1722546637902,-181.66385154,0.00011,2]
[333841763,1722546637913,-155.0,0.00011,2]
[333841764,1722546637923,-299.71268725,0.00011,2]
[333841765,1722546637933,-1049.72746869,0.00011,2]
[333841766,1722546637942,-412.76630026,0.00011,2]
[333841767,1722546637952,-170.34699346,0.00011,2]
[333841768,1722546637961,-340.68338463,0.00011,4]
[333841769,1722546637971,-449.14284782,0.00011,2]
[333841770,1722546637982,-2000.0,0.00011,2]
[333841771,1722546637992,-200.0,0.00011,2]
[333841772,1722546638001,-3000.0,0.00011,2]
[333841773,1722546638010,-200.0,0.00011,2]
[333841774,1722546638021,-1417.1008772,0.00011046,2]
[333841775,1722546638031,-2768.0334683,0.00011054,2]
[333841776,1722546638040,-1411.32,0.00011068,14]
[333841777,1722546638050,-5000.0,0.00011105,2]
[333841778,1722546638059,-379.95855132,0.00011105,2]
[333841779,1722546638070,-313.21285772,0.00011105,2]
[333841780,1722546638079,-528.40182091,0.00011105,2]
[333841781,1722546638089,-161.34285131,0.00011105,2]
[333841782,1722546638098,-15467.9621784,0.00011105,2]
[333841783,1722546638108,-321.56909968,0.00011105,2]
[333841784,1722546638118,-10524.20000003,0.00011105,2]
[333841785,1722546638127,-7269.27662273,0.00011105,2]
[333841786,1722546638138,-5398.55869267,0.00011105,2]
[333841787,1722546638148,-302.99770982,0.00011105,2]
[333841788,1722546638158,-531.73631271,0.00011105,2]
[333841789,1722546638167,-1296.95622263,0.00011105,2]
[333841790,1722546638176,-296.32495924,0.00011105,2]
[333841791,1722546638186,-650.60114793,0.00011105,2]
[333841792,1722546638195,-189.75235167,0.00011105,2]
[333841793,1722546638205,-2772.05148156,0.00011105,2]
[333841794,1722546638215,-2727.16525437,0.00011105,2]
[333841795,1722546638225,-1183.81771126,0.00011105,2]
[333841796,1722546638239,-4472.47771748,0.00011105,2]
[333841797,1722546638249,-2838.43536075,0.00011105,2]
[333841798,1722546638258,-1279.6860653,0.00011105,2]
[333841799,1722546638267,-1049.57124552,0.00011105,2]
[333841800,1722546638276,-1112.24767944,0.00011105,2]
[333841801,1722546638286,-519.35904106,0.00011105,2]
[333841802,1722546638295,-555.0,0.00011105,2]
[333841803,1722546638305,-155.0,0.00011105,2]
[333841804,1722546638314,-946.54741761,0.00011105,2]
[333841805,1722546638324,-400.0,0.00011105,2]
[333841806,1722546638333,-327.928426,0.00011105,2]
[333841807,1722546638343,-4785.46169067,0.00011105,2]
[333841808,1722546638353,-281.48530578,0.00011105,2]
[333841809,1722546638364,-519.62430261,0.00011105,2]
[333841810,1722546638374,-838.4766335,0.00011105,2]
[333841811,1722546638384,-155.0,0.00011105,2]
[333841812,1722546638394,-349.35447946,0.00011105,2]
[333841813,1722546638405,-155.0,0.00011105,2]
[333841814,1722546638415,-236.10516886,0.00011105,2]
[333841815,1722546638425,-400.85725149,0.00011105,2]
[333841816,1722546638434,-188.60979296,0.00011105,2]
[333841817,1722546638444,-891.66142988,0.00011105,2]
[333841818,1722546638453,-530.53203882,0.00011105,2]
[333841819,1722546638463,-308.97616233,0.00011105,2]
[333841820,1722546638473,-526.08215279,0.00011105,2]
[333841821,1722546638483,-2000.0,0.0001111,2]
[333841822,1722546638493,-150.2,0.00011176,2]
[333841823,1722546638502,-22636.62649334,0.00011186,2]
[333841824,1722546638512,-35692.14335282,0.00011186,2]
[333841825,1722546638521,-271.08152921,0.00011186,2]
[333841826,1722546638531,-2000.0,0.00011221,2]
[333841827,1722546638541,-1137.94693277,0.00011322,2]
[333841828,1722546638550,-1134.59400002,0.000118,2]
[333841829,1722546638560,-300.0,0.000118,2]
[333841830,1722546638569,-652.98954069,0.0001185,2]
[333841831,1722546638579,-320.0,0.00011984,2]
[333841832,1722546638589,-550.0,0.00012,2]
[333841833,1722546638599,-1000.0,0.00012215,2]
[333841834,1722546638608,-515.596573,0.00012304,2]
[333841835,1722546638618,-484.69898026,0.00012397,2]
[333841836,1722546638628,-2936.49897258,0.00012456,2]
[333841837,1722546638637,-359.03203292,0.0001254,2]
[333841838,1722546638647,-359.03203292,0.0001254,2]
[333841839,1722546638657,-155.0,0.00012665,2]
[333841840,1722546638667,-197.16,0.0001268,2]
[333841841,1722546638677,-264.23719677,0.00012681,2]
[333841842,1722546638686,-347.32373286,0.0001269,2]
[333841843,1722546638696,-213.65250871,0.0001269,2]
[333841844,1722546638706,-558.34027458,0.00012818,2]
[333841845,1722546639106,-265.17493776,0.00012826,2]
[333841846,1722546639145,-588.30004109,0.00012826,2]
[333841847,1722546639155,-158.84273734,0.00012826,2]
[333841848,1722546639164,-588.30004109,0.00012826,2]
[333841849,1722546639175,-686.31468402,0.00012995,2]
[333841850,1722546639184,-236.40881395,0.00012995,2]
[333841851,1722546639194,-155.0,0.00013,2]
[333841852,1722546639204,-522.2943292,0.00013066,2]
[333841853,1722546639215,-522.2943292,0.00013066,2]
[333841854,1722546639225,-320.0,0.00013183,2]
[333841855,1722546639237,-3000.0,0.000132,2]
[333841856,1722546639246,-2070.0,0.0001339,2]
[333841857,1722546639256,-1000.0,0.00013572,2]
[333841859,1722546639265,-2669.53619114,0.0001367,2]
[333841861,1722546639275,-2751.0,0.00013699,2]
[333841862,1722546639285,-500.0,0.00013699,2]
[333841863,1722546639295,-200.0,0.00013699,2]
[333841864,1722546639304,-6894.52,0.000137,2]
[333841865,1722546639314,-6894.52,0.000137,2]
[333841866,1722546639324,-6894.52,0.000137,2]
[333841867,1722546639333,-6894.52,0.000137,2]
[333841868,1722546639342,-6894.52,0.000137,2]
[333841869,1722546639352,-515.596573,0.00013708,2]
[333841870,1722546639363,-150.2,0.0001379,2]
[333841871,1722546639372,-3200.0,0.000138,5]
[333841872,1722546639382,-432282.763523,0.000138,3]
[333841873,1722546639391,-420.49,0.00013808,2]
[333841874,1722546639401,-185264.04151,0.0001389,3]
[333841875,1722546639410,-150.2,0.0001389,2]
[333841876,1722546639421,-207.18203424,0.00013899,2]
[333841877,1722546639430,-4900.0,0.000139,5]
[333841878,1722546639440,-600860.624197,0.000139,3]
[333841879,1722546639450,-150.0,0.00013903,2]
[333841880,1722546639460,-1202.0,0.00013903,2]
[333841881,1722546639469,-5122.0,0.00013903,2]
[333841882,1722546639479,-5833.0,0.00013903,2]
[333841883,1722546639491,-21729.0,0.00013903,2]
[333841884,1722546639500,-151.536677,0.00013973,2]
[333841885,1722546639509,-646.49,0.00013973,2]
[333841886,1722546639518,-900.0,0.00013973,2]
[333841887,1722546639527,-210.80539627,0.00013986,2]
[333841888,1722546639539,-600.0,0.00014,2]
[333841889,1722546639549,-2936.49897258,0.00014011,2]
[333841890,1722546639560,-250.0,0.00014381,2]
[333841891,1722546639569,-150.0,0.00014381,2]
[333841892,1722546639579,-250.0,0.00014381,2]
[333841893,1722546639589,-1925.0,0.00014381,2]
[333841894,1722546639598,-1255.0,0.00014381,2]
[333841895,1722546639608,-621.0,0.00014381,2]
[333841896,1722546639618,-811.0,0.00014381,2]
[333841897,1722546639627,-445.0,0.00014381,2]
[333841898,1722546639637,-450.0,0.00014381,2]
[333841899,1722546639647,-1249.0,0.00014381,2]
[333841900,1722546639656,-1892.0,0.00014381,2]
[333841901,1722546639665,-3287.0,0.00014381,2]
[333841902,1722546639675,-320.0,0.00014381,2]
[333841903,1722546639684,-11495.0,0.000144,5]
[333841904,1722546639693,-151.536677,0.00014795,2]
[333841905,1722546639702,-197.16,0.0001491,2]
[333841906,1722546639712,-1000.0,0.00014929,2]
[333841907,1722546639721,-20021.96435556,0.00015,7]
[333841908,1722546639731,-1197.14129337,0.00015,2]
[333841909,1722546639740,-8021.0,0.00015,2]
[333841910,1722546639749,-155.0,0.00015,2]
[333841911,1722546639758,-155.0,0.00015,2]
[333841912,1722546639767,-451.04393351,0.00015,14]
[333841913,1722546639777,-1673.0,0.00015,2]
[333841914,1722546639786,-1009.44,0.00015,2]
[333841915,1722546639796,-300.0,0.00015068,2]
[333841916,1722546639805,-2936.49897258,0.00015567,2]